fUSD/lending_fUSD_20241116
["ID","MTS","AMOUNT","RATE_DAILY","PERIOD"]
[342352235,1731767435483,-697.04,9.999e-05,2]
[342352236,1731767435492,-697.04,9.999e-05,2]
[342352237,1731767435502,-697.04,9.999e-05,2]
[342352238,1731767435514,-697.04,9.999e-05,2]
[342352239,1731767435526,-697.04,9.999e-05,2]
[342352240,1731767435536,-697.04,9.999e-05,2]
[342352241,1731767435546,-697.04,9.999e-05,2]
[342352242,1731767435557,-697.04,9.999e-05,2]
[342352243,1731767435568,-697.04,9.999e-05,2]
[342352244,1731767435578,-697.04,9.999e-05,2]
[342352245,1731767435589,-697.04,9.999e-05,2]
[342352246,1731767435599,-697.04,9.999e-05,2]
[342352247,1731767435610,-697.04,9.999e-05,2]
[342352248,1731767435620,-697.23,9.999e-05,2]
[342352249,1731767435631,-722.51,9.999e-05,2]
[342352250,1731767435642,-722.51,9.999e-05,2]
[342352251,1731767435653,-722.51,9.999e-05,2]
[342352252,1731767435663,-722.51,9.999e-05,2]
[342352253,1731767435673,-722.51,9.999e-05,2]
[342352254,1731767435683,-722.51,9.999e-05,2]
[342352255,1731767435694,-722.51,9.999e-05,2]
[342352256,1731767435704,-722.51,9.999e-05,2]
[342352257,1731767435714,-722.51,9.999e-05,2]
[342352258,1731767435724,-722.51,9.999e-05,2]
[342352259,1731767435734,-722.51,9.999e-05,2]
[342352260,1731767435744,-722.51,9.999e-05,2]
[342352261,1731767435754,-722.51,9.999e-05,2]
[342352262,1731767435764,-722.51,9.999e-05,2]
[342352263,1731767435774,-722.51,9.999e-05,2]
[342352264,1731767435790,-722.51,9.999e-05,2]
[342352265,1731767435801,-722.51,9.999e-05,2]
[342352266,1731767435811,-722.51,9.999e-05,2]
[342352267,1731767435821,-722.51,9.999e-05,2]
[342352268,1731767435831,-722.51,9.999e-05,2]
[342352269,1731767435841,-722.51,9.999e-05,2]
[342352270,1731767435852,-722.51,9.999e-05,2]
[342352271,1731767435863,-722.68,9.999e-05,2]
[342352272,1731767435873,-500.0,9.999e-05,2]
[342352273,1731767435883,-500.0,9.999e-05,2]
[342352274,1731767435894,-500.0,9.999e-05,2]
[342352275,1731767435905,-500.0,9.999e-05,2]
[342352276,1731767435915,-500.0,9.999e-05,2]
[342352277,1731767435926,-500.0,9.999e-05,2]
[342352278,1731767435936,-500.0,9.999e-05,2]
[342352279,1731767435947,-500.0,9.999e-05,2]
[342352280,1731767435957,-500.0,9.999e-05,2]
[342352281,1731767435967,-500.0,9.999e-05,2]
[342352282,1731767435977,-500.0,9.999e-05,2]
[342352283,1731767435987,-500.0,9.999e-05,2]
[342352284,1731767435997,-500.0,9.999e-05,2]
[342352285,1731767436008,-500.0,9.999e-05,2]
[342352286,1731767436018,-500.0,9.999e-05,2]
[342352287,1731767436033,-500.0,9.999e-05,2]
[342352288,1731767436043,-500.0,9.999e-05,2]
[342352289,1731767436053,-500.0,9.999e-05,2]
[342352290,1731767436063,-500.0,9.999e-05,2]
[342352291,1731767436073,-625.6033902,9.999e-05,2]
[342352292,1731767436083,-500.0,9.999e-05,2]
[342352293,1731767436093,-500.0,9.999e-05,2]
[342352294,1731767436104,-500.0,9.999e-05,2]
[342352295,1731767436114,-500.0,9.999e-05,2]
[342352296,1731767436124,-500.0,9.999e-05,2]
[342352297,1731767436136,-500.0,9.999e-05,2]
[342352298,1731767436147,-500.0,9.999e-05,2]
[342352299,1731767436157,-500.0,9.999e-05,2]
[342352300,1731767436166,-500.0,9.999e-05,2]
[342352301,1731767436176,-500.0,9.999e-05,2]
[342352302,1731767436186,-500.0,9.999e-05,2]
[342352303,1731767436197,-500.0,9.999e-05,2]
[342352304,1731767436207,-500.0,9.999e-05,2]
[342352305,1731767436217,-500.0,9.999e-05,2]
[342352306,1731767436228,-500.0,9.999e-05,2]
[342352307,1731767436238,-500.0,9.999e-05,2]
[342352308,1731767436248,-500.0,9.999e-05,2]
[342352309,1731767436259,-500.0,9.999e-05,2]
[342352310,1731767436268,-424.61206503,9.999e-05,2]
[342352311,1731767436284,-500.0,9.999e-05,2]
[342352312,1731767436296,-500.0,9.999e-05,2]
[342352313,1731767436307,-500.0,9.999e-05,2]
[342352314,1731767436317,-500.0,9.999e-05,2]
[342352315,1731767436327,-500.0,9.999e-05,2]
[342352316,1731767436336,-500.0,9.999e-05,2]
[342352317,1731767436346,-500.0,9.999e-05,2]
[342352318,1731767436356,-500.0,9.999e-05,2]
[342352319,1731767436366,-500.0,9.999e-05,2]
[342352320,1731767436376,-500.0,9.999e-05,2]
[342352321,1731767436386,-500.0,9.999e-05,2]
[342352322,1731767436396,-500.0,9.999e-05,2]
[342352323,1731767436405,-500.0,9.999e-05,2]
[342352324,1731767436415,-500.0,9.999e-05,2]
[342352325,1731767436426,-500.0,9.999e-05,2]
[342352326,1731767436436,-500.0,9.999e-05,2]
[342352327,1731767436446,-500.0,9.999e-05,2]
[342352328,1731767436457,-186.11695062,9.999e-05,2]
[342352329,1731767436467,-2503.25,9.999e-05,2]
[342352330,1731767436476,-2503.25,9.999e-05,2]
[342352331,1731767436487,-2503.25,9.999e-05,2]
[342352332,1731767436496,-2503.25,9.999e-05,2]
[342352333,1731767436507,-2503.25,9.999e-05,2]
[342352334,1731767436517,-2503.25,9.999e-05,2]
[342352335,1731767436528,-2503.25,9.999e-05,2]
[342352336,1731767436544,-2503.25,9.999e-05,2]
[342352337,1731767436553,-2503.25,9.999e-05,2]
[342352338,1731767436564,-2503.25,9.999e-05,2]
[342352339,1731767436574,-2503.25,9.999e-05,2]
[342352340,1731767436585,-2503.25,9.999e-05,2]
[342352341,1731767436594,-2503.25,9.999e-05,2]
[342352342,1731767436604,-2503.25,9.999e-05,2]
[342352343,1731767436614,-2503.25,9.999e-05,2]
[342352344,1731767436625,-2503.25,9.999e-05,2]
[342352345,1731767436635,-2503.25,9.999e-05,2]
[342352346,1731767436646,-2503.25,9.999e-05,2]
[342352347,1731767436656,-2503.25,9.999e-05,2]
[342352348,1731767436666,-2503.25,9.999e-05,2]
[342352349,1731767436676,-2503.25,9.999e-05,2]
[342352350,1731767436686,-2503.25,9.999e-05,2]
[342352351,1731767436697,-2503.28488841,9.999e-05,2]
[342352352,1731767436707,-591.08,9.999e-05,2]
[342352353,1731767436716,-591.08,9.999e-05,2]
[342352354,1731767436726,-591.08,9.999e-05,2]
[342352355,1731767436736,-591.08,9.999e-05,2]
[342352356,1731767436747,-591.08,9.999e-05,2]
[342352357,1731767436757,-591.08,9.999e-05,2]
[342352358,1731767436767,-591.08,9.999e-05,2]
[342352359,1731767436781,-591.08,9.999e-05,2]
[342352360,1731767436791,-591.08,9.999e-05,2]
[342352361,1731767436801,-591.08,9.999e-05,2]
[342352362,1731767436811,-591.08,9.999e-05,2]
[342352363,1731767436821,-591.08,9.999e-05,2]
[342352364,1731767436831,-591.08,9.999e-05,2]
[342352365,1731767436840,-591.08,9.999e-05,2]
[342352366,1731767436850,-591.08,9.999e-05,2]
[342352367,1731767436860,-591.08,9.999e-05,2]
[342352368,1731767436869,-591.08,9.999e-05,2]
[342352369,1731767436881,-591.08,9.999e-05,2]
[342352370,1731767436891,-591.08,9.999e-05,2]
[342352371,1731767436901,-591.08,9.999e-05,2]
[342352372,1731767436910,-591.08,9.999e-05,2]
[342352373,1731767436920,-591.08,9.999e-05,2]
[342352374,1731767436930,-591.16,9.999e-05,2]
[342352375,1731767436939,-500.0,9.999e-05,2]
[342352376,1731767436949,-500.0,9.999e-05,2]
[342352377,1731767436958,-500.0,9.999e-05,2]
[342352378,1731767436968,-558.03399619,9.999e-05,2]
[342352379,1731767436978,-500.0,9.999e-05,2]
[342352380,1731767436987,-500.0,9.999e-05,2]
[342352381,1731767436996,-500.0,9.999e-05,2]
[342352382,1731767437006,-500.0,9.999e-05,2]
[342352383,1731767437016,-500.0,9.999e-05,2]
[342352384,1731767437026,-500.0,9.999e-05,2]
[342352385,1731767437037,-500.0,9.999e-05,2]
[342352386,1731767437048,-500.0,9.999e-05,2]
[342352387,1731767437062,-500.0,9.999e-05,2]
[342352388,1731767437072,-500.0,9.999e-05,2]
[342352389,1731767437082,-500.0,9.999e-05,2]
[342352390,1731767437093,-500.0,9.999e-05,2]
[342352391,1731767437103,-500.0,9.999e-05,2]
[342352392,1731767437114,-500.0,9.999e-05,2]
[342352393,1731767437124,-548.74,9.999e-05,2]
[342352394,1731767437134,-500.0,9.999e-05,2]
[342352395,1731767437144,-500.0,9.999e-05,2]
[342352396,1731767437153,-500.0,9.999e-05,2]
[342352397,1731767437163,-500.0,9.999e-05,2]
[342352398,1731767437173,-4103.92,9.999e-05,2]
[342352399,1731767437187,-4103.92,9.999e-05,2]
[342352400,1731767437197,-4103.92,9.999e-05,2]
[342352401,1731767437208,-4103.92,9.999e-05,2]
[342352402,1731767437217,-4103.92,9.999e-05,2]
[342352403,1731767437227,-4103.92,9.999e-05,2]
[342352404,1731767437237,-4103.92,9.999e-05,2]
[342352405,1731767437247,-4103.92,9.999e-05,2]
[342352406,1731767437257,-4103.92,9.999e-05,2]
[342352407,1731767437267,-4103.92,9.999e-05,2]
[342352408,1731767437276,-4103.92,9.999e-05,2]
[342352409,1731767437290,-4103.92,9.999e-05,2]
[342352410,1731767437299,-4103.92,9.999e-05,2]
[342352411,1731767437309,-4103.92,9.999e-05,2]
[342352412,1731767437320,-4103.92,9.999e-05,2]
[342352413,1731767437330,-4103.92,9.999e-05,2]
[342352414,1731767437340,-4103.92,9.999e-05,2]
[342352415,1731767437350,-4103.92,9.999e-05,2]
[342352416,1731767437361,-4103.92,9.999e-05,2]
[342352417,1731767437371,-4103.92,9.999e-05,2]
[342352418,1731767437381,-47052.84021615,9.999e-05,2]
[342352419,1731767437391,-250.0274167,0.0001,2]
[342352420,1731767437401,-4935.18186418,0.0001,2]
[342352421,1731767437411,-167257.84118846,0.0001,2]
[342352441,1731767437731,-2716.66522628,9.999e-05,2]
[342352447,1731767437760,-1387.25477372,9.999e-05,2]
[342352449,1731767437770,-2549.36105406,9.999e-05,2]
[342352451,1731767437785,-1505.90000002,9.999e-05,2]
[342352452,1731767437798,-48.65894592,9.999e-05,2]
[342352454,1731767437808,-243.04492275,9.999e-05,2]
[342352456,1731767437820,-253.4983603,9.999e-05,2]
[342352458,1731767437832,-336.59526332,9.999e-05,2]
[342352464,1731767437877,-2163.80638352,9.999e-05,2]
[342352471,1731767437994,-575.501587,9.999e-05,2]
[342352472,1731767438006,-531.47348311,9.999e-05,2]
[342352473,1731767438015,-692.16324692,0.0001,2]
[342352474,1731767438027,-3022.92522577,0.0001,2]
[342352475,1731767438044,-1198.00442875,0.0001,2]
[342352488,1731767438515,-6526.64120714,0.0001,2]
[342352491,1731767438539,-58712.55325011,0.0001,2]
[342352493,1731767438554,-1000.0,0.0001,2]
[342352495,1731767438564,-2774860.80716631,0.0001,2]
[342352497,1731767438575,-30001.39279,0.0001,2]
[342352499,1731767438587,-39992.39352,0.0001,2]
[342352528,1731767439639,-768.3,0.0001,2]
[342352530,1731767439677,-662.95787781,0.0001,2]
[342352531,1731767439690,-266.929,0.0001,2]
[342352532,1731767439719,-304.85019836,0.0001,2]
[342352533,1731767439732,-332.92207098,0.0001,2]
[342352534,1731767439759,-150454.16102585,0.0001,2]
[342352535,1731767439800,-58653.96031748,0.0001,2]
[342352536,1731767439841,-2042.05737834,0.0001,2]
[342352537,1731767439876,-3221.10000002,0.0001,2]
[342352538,1731767440010,-1350.90100024,0.0001,2]
[342352540,1731767442717,-455.99047158,0.0001,2]
[342352541,1731767442728,-3147.19224954,0.0001,2]
[342352542,1731767442740,-4366.35758575,0.0001,2]
[342352543,1731767442752,-3697.42205431,0.0001,2]
[342352544,1731767442768,-2866.74336,0.0001,2]
[342352545,1731767442779,-9079.6,0.0001,2]
[342352546,1731767442793,-31879.40353436,0.0001,2]
[342352547,1731767442888,-4777.30943277,0.0001,2]
[342352548,1731767442917,-4611.05103786,0.0001,2]
[342352549,1731767442945,-2615.70207003,0.0001,2]
[342352550,1731767442957,-4822.9152907,0.0001,2]
[342352551,1731767442968,-1921526.35793691,0.0001,2]
[342352552,1731767443053,-276.04909819,0.0001,2]
[342352554,1731767443065,-36976.86092293,0.0001,2]
[342352571,1731767445670,-709.17982878,0.0001,2]
[342352572,1731767445682,-636.043,0.0001,2]
[342352573,1731767445693,-10535.6001,0.0001,2]
[342352574,1731767445705,-4578.4,0.0001,2]
[342352575,1731767445789,-17719.57922838,0.0001,2]
[342352576,1731767445800,-2350.82448707,0.0001,2]
[342352577,1731767445811,-2602.14330272,0.0001,2]
[342352578,1731767445823,-90893.44694058,0.0001,2]
[342352579,1731767445834,-69328.38700013,0.0001,2]
[342352580,1731767445845,-16112.87999995,0.0001,2]
[342352585,1731767605944,852.06,8.219e-05,2]
[342352586,1731767606806,9043.98688372,5e-05,14]
[342352588,1731768024046,-1333.0,0.00023233,120]
[342352589,1731768024098,-2000.0,0.00024988,120]
[342352590,1731768024139,-500.0,0.00024999,120]
[342352591,1731768024185,-500.0,0.00024999,120]
[342352592,1731768024228,-500.0,0.00025,120]
[342352670,1731768195905,212.925353,0.0002492,120]
[342352676,1731768280764,250.0,8.471e-05,2]
[342352678,1731768325607,1000.0,8.472e-05,2]
[342352679,1731768349160,-945.04654653,8.526e-05,2]
[342352680,1731768418373,809.45,8.219e-05,2]
[342352681,1731768432099,-704.32345347,8.526e-05,2]
[342352682,1731768432120,-200.0,8.536e-05,2]
[342352683,1731768432143,-14805.06422644,8.551e-05,2]
[342352684,1731768443311,-1335.86206353,8.526e-05,2]
[342352685,1731768443332,-3034.97487092,8.551e-05,2]
[342352696,1731768546161,-372.56,8.516e-05,2]
[342352697,1731768546184,-6059.96090264,8.551e-05,2]
[342352698,1731768546207,-227.93,8.568e-05,2]
[342352699,1731768546229,-5021.8130918,8.6e-05,2]
[342352700,1731768552135,-4411.7069082,8.6e-05,2]
[342352701,1731768552156,-2996.26,8.616e-05,2]
[342352702,1731768552176,-150.0,8.658e-05,2]
[342352703,1731768552196,-1852.42,8.672e-05,2]
[342352704,1731768552217,-250.0,8.691e-05,2]
[342352705,1731768552242,-250.0,8.694e-05,2]
[342352706,1731768552263,-166.03,8.758e-05,2]
[342352707,1731768552285,-3578.77,8.767e-05,2]
[342352708,1731768552312,-500.0,8.781e-05,2]
[342352709,1731768552334,-427.44,8.801e-05,2]
[342352720,1731768595009,250.0,8.777e-05,2]
[342352731,1731768631845,-800.0,9e-05,3]
[342352732,1731768631854,-1600.0,9.1e-05,3]
[342352733,1731768631871,-164.85,9.182e-05,2]
[342352734,1731768631881,-2400.0,9.2e-05,3]
[342352735,1731768631891,-3200.0,9.3e-05,3]
[342352736,1731768631900,-433.2,9.3e-05,2]
[342352737,1731768631910,-4000.0,9.4e-05,3]
[342352738,1731768631920,-432.72,9.441e-05,2]
[342352739,1731768631931,-150.0,9.452e-05,2]
[342352740,1731768631944,-800.0,9.5e-05,3]
[342352741,1731768631955,-1000.0,9.531e-05,2]
[342352742,1731768631965,-150.0,9.58e-05,2]
[342352743,1731768631976,-372.56,9.58e-05,2]
[342352744,1731768631986,-187.161253,9.589e-05,2]
[342352745,1731768631995,-800.0,9.6e-05,3]
[342352746,1731768632005,-3888.02,9.67e-05,2]
[342352747,1731768632015,-299.99,9.67e-05,2]
[342352748,1731768632024,-509.62,9.67e-05,2]
[342352749,1731768632034,-800.0,9.7e-05,3]
[342352750,1731768632043,-187.161253,9.78e-05,2]
[342352751,1731768632055,-187.161253,9.783e-05,2]
[342352752,1731768632065,-1575.472,9.793e-05,2]
[342352753,1731768632074,-3338.438,9.798e-05,2]
[342352754,1731768632083,-1000.0,9.798e-05,2]
[342352755,1731768632093,-12623.40088548,9.799e-05,2]
[342352756,1731768632102,-21889.42630307,9.8e-05,2]
[342352757,1731768632111,-800.0,9.8e-05,3]
[342352758,1731768632120,-41272.48382245,9.893e-05,2]
[342352759,1731768632154,-626.25878249,9.893e-05,2]
[342352760,1731768632166,-7054.81899106,9.893e-05,2]
[342352761,1731768632192,-2744.6795361,9.893e-05,2]
[342352762,1731768632203,-10819.4250679,9.893e-05,2]
[342352763,1731768632212,-187.161253,9.898e-05,2]
[342352764,1731768632221,-8833.49275256,9.898e-05,2]
[342352765,1731768632232,-756.43989339,9.898e-05,2]
[342352766,1731768632243,-994.18438979,9.898e-05,2]
[342352767,1731768632254,-4722.74887706,9.898e-05,2]
[342352768,1731768632361,-372.57,9.898e-05,2]
[342352792,1731768638075,-500.0,9.854e-05,2]
[342352793,1731768638085,-1559.69324223,9.898e-05,2]
[342352794,1731768638097,-502.3387746,9.898e-05,2]
[342352795,1731768638200,-28073.88547037,9.898e-05,2]
[342352796,1731768638209,-332.8091,9.899e-05,2]
[342352797,1731768638219,-1000.0,9.899e-05,2]
[342352798,1731768638228,-1000.0,9.9e-05,3]
[342352799,1731768638237,-427.44,9.901e-05,2]
[342352800,1731768638248,-4015.08192175,9.95e-05,2]
[342352801,1731768638257,-3589.8,9.953e-05,2]
[342352802,1731768638267,-10279.1,9.953e-05,2]
[342352803,1731768638276,-36465.18,9.953e-05,2]
[342352804,1731768638285,-500.0,9.953e-05,2]
[342352805,1731768638294,-500.0,9.953e-05,2]
[342352806,1731768638304,-556.02374988,9.953e-05,2]
[342352807,1731768638316,-500.0,9.953e-05,2]
[342352808,1731768638326,-500.0,9.953e-05,2]
[342352809,1731768638335,-1647.97108987,9.953e-05,2]
[342352810,1731768638345,-2710.9,9.954e-05,2]
[342352811,1731768638355,-15447.59,9.954e-05,2]
[342352812,1731768638365,-308.13721444,9.954e-05,2]
[342352813,1731768638374,-4130.88,9.954e-05,2]
[342352814,1731768638384,-1647.97108987,9.955e-05,2]
[342352815,1731768638394,-179376.3640462,9.955e-05,2]
[342352816,1731768638414,-241.36990944,9.956e-05,2]
[342352817,1731768638425,-3589.8,9.958e-05,2]
[342352818,1731768638440,-10279.1,9.958e-05,2]
[342352819,1731768638458,-36465.18,9.958e-05,2]
[342352820,1731768638468,-500.0,9.958e-05,2]
[342352821,1731768638478,-500.0,9.958e-05,2]
[342352822,1731768638488,-500.0,9.958e-05,2]
[342352824,1731768638498,-500.0,9.958e-05,2]
[342352826,1731768638508,-29405.5254144,9.959e-05,2]
[342352829,1731768638518,-29405.5254144,9.959e-05,2]
[342352830,1731768638527,-2710.9,9.96e-05,2]
[342352831,1731768638537,-15447.59,9.96e-05,2]
[342352832,1731768638546,-3589.8,9.96e-05,2]
[342352833,1731768638556,-10279.1,9.96e-05,2]
[342352834,1731768638568,-4130.88,9.96e-05,2]
[342352835,1731768638577,-36465.18,9.96e-05,2]
[342352836,1731768638587,-500.0,9.96e-05,2]
[342352837,1731768638596,-500.0,9.96e-05,2]
[342352838,1731768638606,-179376.3640462,9.96e-05,2]
[342352839,1731768638615,-4015.08192175,9.961e-05,2]
[342352841,1731768638625,-241.36990944,9.963e-05,2]
[342352842,1731768638635,-4015.08192175,9.967e-05,2]
[342352843,1731768638644,-4015.08192175,9.969e-05,2]
[342352844,1731768638654,-6713.25771613,9.97e-05,2]
[342352845,1731768638663,-358.15546809,9.973e-05,2]
[342352846,1731768638673,-500.0,9.973e-05,2]
[342352847,1731768638685,-6713.25771613,9.976e-05,2]
[342352848,1731768638695,-241.36990944,9.977e-05,2]
[342352849,1731768638705,-2710.9,9.977e-05,2]
[342352850,1731768638715,-15447.59,9.977e-05,2]
[342352851,1731768638727,-3589.8,9.977e-05,2]
[342352852,1731768638737,-10279.1,9.977e-05,2]
[342352853,1731768638747,-4130.88,9.977e-05,2]
[342352854,1731768638757,-36465.18,9.977e-05,2]
[342352855,1731768638769,-500.0,9.977e-05,2]
[342352856,1731768638779,-500.0,9.977e-05,2]
[342352857,1731768638789,-6713.25771613,9.977e-05,2]
[342352858,1731768638799,-179376.3640462,9.978e-05,2]
[342352859,1731768638812,-6713.25771613,9.979e-05,2]
[342352860,1731768638822,-1647.97108987,9.983e-05,2]
[342352861,1731768638832,-241.36990944,9.985e-05,2]
[342352862,1731768638843,-6713.25771613,9.987e-05,2]
[342352863,1731768638852,-4015.08192175,9.988e-05,2]
[342352864,1731768638862,-2710.9,9.989e-05,2]
[342352865,1731768638872,-15447.59,9.989e-05,2]
[342352866,1731768638882,-3589.8,9.989e-05,2]
[342352867,1731768638892,-10279.1,9.989e-05,2]
[342352868,1731768638902,-4130.88,9.989e-05,2]
[342352869,1731768638911,-36465.18,9.989e-05,2]
[342352870,1731768638921,-500.0,9.989e-05,2]
[342352871,1731768638931,-500.0,9.989e-05,2]
[342352872,1731768638942,-179376.3640462,9.99e-05,2]
[342352873,1731768638952,-29405.5254144,9.991e-05,2]
[342352874,1731768638962,-1002.597,9.992e-05,2]
[342352875,1731768638973,-179.735,9.992e-05,2]
[342352876,1731768638983,-1647.97108987,9.994e-05,2]
[342352877,1731768638994,-241.36990944,9.994e-05,2]
[342352878,1731768639004,-3589.8,9.994e-05,2]
[342352879,1731768639014,-36465.18,9.994e-05,2]
[342352880,1731768639024,-500.0,9.994e-05,2]
[342352881,1731768639034,-276.38,9.994e-05,2]
[342352882,1731768639045,-29405.5254144,9.995e-05,2]
[342352883,1731768639054,-500.0,9.995e-05,2]
[342352884,1731768639072,-2710.9,9.995e-05,2]
[342352885,1731768639082,-15447.59,9.995e-05,2]
[342352886,1731768639093,-4802.94,9.995e-05,2]
[342352887,1731768639103,-500.0,9.995e-05,2]
[342352888,1731768639112,-10279.1,9.995e-05,2]
[342352889,1731768639122,-4130.88,9.995e-05,2]
[342352890,1731768639131,-500.0,9.995e-05,2]
[342352891,1731768639141,-500.0,9.995e-05,2]
[342352892,1731768639150,-82783.58500864,9.996e-05,2]
[342352893,1731768639160,-3589.8,9.996e-05,2]
[342352894,1731768639169,-36465.18,9.996e-05,2]
[342352895,1731768639179,-365.7940521,9.996e-05,2]
[342352896,1731768639187,-500.0,9.997e-05,2]
[342352897,1731768639197,-2710.9,9.997e-05,2]
[342352898,1731768639207,-2710.9,9.997e-05,2]
[342352899,1731768639216,-2710.9,9.997e-05,2]
[342352900,1731768639227,-15447.59,9.997e-05,2]
[342352901,1731768639237,-15447.59,9.997e-05,2]
[342352902,1731768639247,-15447.59,9.997e-05,2]
[342352903,1731768639257,-4802.94,9.997e-05,2]
[342352904,1731768639267,-4802.94,9.997e-05,2]
[342352905,1731768639277,-500.0,9.997e-05,2]
[342352906,1731768639286,-500.0,9.997e-05,2]
[342352907,1731768639295,-3589.8,9.997e-05,2]
[342352908,1731768639305,-3589.8,9.997e-05,2]
[342352909,1731768639321,-10279.1,9.997e-05,2]
[342352910,1731768639331,-10279.1,9.997e-05,2]
[342352911,1731768639340,-10279.1,9.997e-05,2]
[342352912,1731768639356,-4130.88,9.997e-05,2]
[342352913,1731768639365,-4130.88,9.997e-05,2]
[342352914,1731768639375,-4130.88,9.997e-05,2]
[342352915,1731768639384,-500.0,9.997e-05,2]
[342352916,1731768639394,-500.0,9.997e-05,2]
[342352917,1731768639404,-36465.18,9.997e-05,2]
[342352918,1731768639413,-36465.18,9.997e-05,2]
[342352919,1731768639423,-179376.3640462,9.998e-05,2]
[342352920,1731768639432,-1647.97108987,9.998e-05,2]
[342352921,1731768639441,-500.0,9.998e-05,2]
[342352922,1731768639452,-500.0,9.998e-05,2]
[342352923,1731768639462,-2710.9,9.998e-05,2]
[342352924,1731768639471,-2710.9,9.998e-05,2]
[342352925,1731768639481,-2710.9,9.998e-05,2]
[342352926,1731768639491,-2710.9,9.998e-05,2]
[342352927,1731768639501,-2710.9,9.998e-05,2]
[342352928,1731768639511,-15447.59,9.998e-05,2]
[342352929,1731768639521,-15447.59,9.998e-05,2]
[342352930,1731768639531,-15447.59,9.998e-05,2]
[342352931,1731768639540,-15447.59,9.998e-05,2]
[342352932,1731768639550,-15447.59,9.998e-05,2]
[342352933,1731768639562,-4802.94,9.998e-05,2]
[342352934,1731768639572,-4802.94,9.998e-05,2]
[342352935,1731768639581,-4802.94,9.998e-05,2]
[342352936,1731768639591,-4802.94,9.998e-05,2]
[342352937,1731768639600,-4802.94,9.998e-05,2]
[342352938,1731768639610,-500.0,9.998e-05,2]
[342352939,1731768639619,-502.32397499,9.998e-05,2]
[342352940,1731768639629,-3589.8,9.998e-05,2]
[342352941,1731768639638,-3589.8,9.998e-05,2]
[342352942,1731768639648,-3589.8,9.998e-05,2]
[342352943,1731768639657,-3589.8,9.998e-05,2]
[342352944,1731768639666,-10279.1,9.998e-05,2]
[342352945,1731768639682,-10279.1,9.998e-05,2]
[342352946,1731768639691,-10279.1,9.998e-05,2]
[342352947,1731768639701,-10279.1,9.998e-05,2]
[342352948,1731768639710,-4130.88,9.998e-05,2]
[342352949,1731768639720,-4130.88,9.998e-05,2]
[342352950,1731768639730,-4130.88,9.998e-05,2]
[342352951,1731768639740,-4130.88,9.998e-05,2]
[342352952,1731768639751,-4130.88,9.998e-05,2]
[342352954,1731768639763,-500.0,9.998e-05,2]
[342352955,1731768639773,-500.0,9.998e-05,2]
[342352956,1731768639784,-500.0,9.998e-05,2]
[342352957,1731768639795,-36465.18,9.998e-05,2]
[342352958,1731768639805,-36465.18,9.998e-05,2]
[342352959,1731768639820,-36465.18,9.998e-05,2]
[342352960,1731768639830,-36465.18,9.998e-05,2]
[342352961,1731768639840,-29405.5254144,9.998e-05,2]
[342352962,1731768639851,-153.32596441,9.999e-05,2]
[342352963,1731768639861,-1802.83787329,9.999e-05,2]
[342352964,1731768639872,-2710.9,9.999e-05,2]
[342352965,1731768639883,-2710.9,9.999e-05,2]
[342352966,1731768639894,-2710.9,9.999e-05,2]
[342352967,1731768639904,-2710.9,9.999e-05,2]
[342352968,1731768639914,-2710.9,9.999e-05,2]
[342352969,1731768639923,-2710.9,9.999e-05,2]
[342352970,1731768639933,-2710.9,9.999e-05,2]
[342352971,1731768639943,-2710.9,9.999e-05,2]
[342352972,1731768639954,-2710.9,9.999e-05,2]
[342352973,1731768639964,-2710.9,9.999e-05,2]
[342352974,1731768639976,-2711.13544395,9.999e-05,2]
[342352975,1731768639986,-15447.59,9.999e-05,2]
[342352976,1731768639997,-15447.59,9.999e-05,2]
[342352977,1731768640007,-15447.59,9.999e-05,2]
[342352978,1731768640016,-15447.59,9.999e-05,2]
[342352979,1731768640026,-15447.59,9.999e-05,2]
[342352986,1731768640264,-15447.59,9.999e-05,2]
[342352988,1731768640274,-15447.59,9.999e-05,2]
[342352990,1731768640283,-15447.59,9.999e-05,2]
[342352992,1731768640293,-15447.59,9.999e-05,2]
[342352993,1731768640303,-15447.59,9.999e-05,2]
[342352994,1731768640315,-15447.66721795,9.999e-05,2]
[342352995,1731768640325,-4802.94,9.999e-05,2]